[Event "*** Titled Tuesday Blitz"]
[Site "Chess.com"]
[Date "2019.08.06"]
[Round "10"]
[White "temus_galaktionov"]
[Black "stoleriu"]
[Result "1/2-1/2"]
[WhiteElo "2680"]
[BlackElo "2524"]
[TimeControl "180+2"]
[EndTime "15:25:00 PDT"]
[Termination "Game drawn - insufficient material"]

1. d4 {[%clk 0:03:01.9]} 1... e6 {[%clk 0:02:58.3]} 2. Nf3 {[%clk 0:02:59.8]}
2... Nf6 {[%clk 0:02:56.9]} 3. c4 {[%clk 0:03:00.3]} 3... Bb4+ {[%clk
0:02:55.9]} 4. Nbd2 {[%clk 0:03:00.3]} 4... b6 {[%clk 0:02:54.4]} 5. a3 {[%clk
0:02:58.7]} 5... Bxd2+ {[%clk 0:02:55.5]} 6. Qxd2 {[%clk 0:03:00.6]} 6... Bb7
{[%clk 0:02:57.3]} 7. b4 {[%clk 0:03:01.5]} 7... a5 {[%clk 0:02:58.6]} 8. Bb2
{[%clk 0:03:02.2]} 8... axb4 {[%clk 0:02:59.9]} 9. axb4 {[%clk 0:03:03.9]} 9...
Rxa1+ {[%clk 0:03:01]} 10. Bxa1 {[%clk 0:03:05.8]} 10... d6 {[%clk 0:03:02.9]}
11. e3 {[%clk 0:03:07]} 11... O-O {[%clk 0:03:04]} 12. Bd3 {[%clk 0:03:07.7]}
12... Nbd7 {[%clk 0:03:05.5]} 13. O-O {[%clk 0:03:08.2]} 13... Qe7 {[%clk
0:03:07.1]} 14. Bb2 {[%clk 0:03:08.8]} 14... Ra8 {[%clk 0:03:08.3]} 15. Ra1
{[%clk 0:03:08.1]} 15... Rxa1+ {[%clk 0:03:07.6]} 16. Bxa1 {[%clk 0:03:10]}
16... Qd8 {[%clk 0:03:06.6]} 17. Qa2 {[%clk 0:03:09.7]} 17... Qa8 {[%clk
0:03:07.5]} 18. Qxa8+ {[%clk 0:03:10.4]} 18... Bxa8 {[%clk 0:03:09.4]} 19. Kf1
{[%clk 0:03:11.4]} 19... Be4 {[%clk 0:03:08.5]} 20. Ke2 {[%clk 0:03:11.8]} 20...
Bxd3+ {[%clk 0:03:08.1]} 21. Kxd3 {[%clk 0:03:13.7]} 21... Kf8 {[%clk
0:03:09.2]} 22. e4 {[%clk 0:03:14.6]} 22... Ke7 {[%clk 0:03:04.2]} 23. d5 {[%clk
0:03:15.4]} 23... e5 {[%clk 0:03:01]} 24. Bc3 {[%clk 0:03:15.2]} 24... Ng4
{[%clk 0:02:54.8]} 25. Ke2 {[%clk 0:03:13.3]} 25... Ndf6 {[%clk 0:02:44.3]} 26.
h3 {[%clk 0:03:13.8]} 26... Nh6 {[%clk 0:02:45.3]} 27. Kd3 {[%clk 0:03:13.1]}
27... Nhg8 {[%clk 0:02:44.9]} 28. Bd2 {[%clk 0:03:12.7]} 28... Nd7 {[%clk
0:02:44.2]} 29. Be3 {[%clk 0:03:13.2]} 29... Ngf6 {[%clk 0:02:44.5]} 30. Nd2
{[%clk 0:03:14.2]} 30... Nh5 {[%clk 0:02:42.8]} 31. g3 {[%clk 0:03:14.2]} 31...
g6 {[%clk 0:02:40.4]} 32. Nb3 {[%clk 0:03:12.5]} 32... f5 {[%clk 0:02:38.7]} 33.
c5 {[%clk 0:03:12]} 33... fxe4+ {[%clk 0:02:38.7]} 34. Kc4 {[%clk 0:03:08.8]}
34... bxc5 {[%clk 0:02:37.7]} 35. bxc5 {[%clk 0:03:09.6]} 35... dxc5 {[%clk
0:02:34.8]} 36. Bxc5+ {[%clk 0:03:09.5]} 36... Nxc5 {[%clk 0:02:31.7]} 37. Kxc5
{[%clk 0:03:10.4]} 37... Kd7 {[%clk 0:02:27]} 38. Kc4 {[%clk 0:03:04.9]} 38...
e3 {[%clk 0:02:13.3]} 39. Nc5+ {[%clk 0:03:05.1]} 39... Ke7 {[%clk 0:01:38.3]}
40. fxe3 {[%clk 0:03:03.3]} 40... Nxg3 {[%clk 0:01:39.4]} 41. Ne6 {[%clk
0:03:03.6]} 41... Kd6 {[%clk 0:00:49.4]} 42. Nf8 {[%clk 0:03:03.2]} 42... Nf1
{[%clk 0:00:32]} 43. e4 {[%clk 0:03:03.7]} 43... Ng3 {[%clk 0:00:33.1]} 44. Kd3
{[%clk 0:03:02.2]} 44... Nh5 {[%clk 0:00:33.8]} 45. Nxh7 {[%clk 0:02:58.4]}
45... Nf4+ {[%clk 0:00:32.9]} 46. Ke3 {[%clk 0:02:59.5]} 46... Nxh3 {[%clk
0:00:34.4]} 47. Kf3 {[%clk 0:03:00.8]} 47... Ke7 {[%clk 0:00:32.3]} 48. Kg4
{[%clk 0:02:52.6]} 48... Nf2+ {[%clk 0:00:31.4]} 49. Kf3 {[%clk 0:02:53.6]}
49... Nd3 {[%clk 0:00:25.4]} 50. Ng5 {[%clk 0:02:54.1]} 50... Nc5 {[%clk
0:00:26.3]} 51. Ke3 {[%clk 0:02:50.8]} 51... Kf6 {[%clk 0:00:27.4]} 52. Nh7+
{[%clk 0:02:49.6]} 52... Kg7 {[%clk 0:00:26.5]} 53. Ng5 {[%clk 0:02:51.1]} 53...
Kf6 {[%clk 0:00:27.7]} 54. Nh7+ {[%clk 0:02:52.1]} 54... Ke7 {[%clk 0:00:24.9]}
55. Ng5 {[%clk 0:02:54]} 55... Kd6 {[%clk 0:00:24]} 56. Nf7+ {[%clk 0:02:54.3]}
56... Ke7 {[%clk 0:00:24.1]} 57. Nxe5 {[%clk 0:02:56.2]} 57... Kf6 {[%clk
0:00:21.8]} 58. Ng4+ {[%clk 0:02:51.4]} 58... Kg5 {[%clk 0:00:22.3]} 59. Nf2
{[%clk 0:02:52.3]} 59... Kf6 {[%clk 0:00:21.6]} 60. Kd4 {[%clk 0:02:51]} 60...
Nb3+ {[%clk 0:00:22.5]} 61. Kc3 {[%clk 0:02:48.3]} 61... Nc5 {[%clk 0:00:23.4]}
62. Kd4 {[%clk 0:02:48.5]} 62... Nb3+ {[%clk 0:00:24.5]} 63. Ke3 {[%clk
0:02:49.4]} 63... Nc5 {[%clk 0:00:24.1]} 64. Ng4+ {[%clk 0:02:37.7]} 64... Kg5
{[%clk 0:00:24.8]} 65. Ne5 {[%clk 0:02:36.9]} 65... Kf6 {[%clk 0:00:26.1]} 66.
Nf3 {[%clk 0:02:35.7]} 66... g5 {[%clk 0:00:27.3]} 67. Nh2 {[%clk 0:02:36.4]}
67... Ke5 {[%clk 0:00:23.5]} 68. Ng4+ {[%clk 0:02:36.9]} 68... Kd6 {[%clk
0:00:24.9]} 69. Nh6 {[%clk 0:02:35.8]} 69... Ke5 {[%clk 0:00:20.1]} 70. Ng4+
{[%clk 0:02:35.2]} 70... Kd6 {[%clk 0:00:21.3]} 71. Kd4 {[%clk 0:02:12.1]} 71...
Nb3+ {[%clk 0:00:21.5]} 72. Kc4 {[%clk 0:02:03.5]} 72... Nd2+ {[%clk 0:00:22.3]}
73. Kd3 {[%clk 0:02:04.7]} 73... Nb3 {[%clk 0:00:22.6]} 74. Nh6 {[%clk
0:02:00.7]} 74... Ke5 {[%clk 0:00:22.5]} 75. Ke3 {[%clk 0:01:58.2]} 75... Nc5
{[%clk 0:00:20.8]} 76. Nf7+ {[%clk 0:01:57.1]} 76... Kf6 {[%clk 0:00:21.8]} 77.
Nd8 {[%clk 0:01:51.6]} 77... Ke5 {[%clk 0:00:22.2]} 78. Nc6+ {[%clk 0:01:51.7]}
78... Kd6 {[%clk 0:00:23.1]} 79. Nd4 {[%clk 0:01:51.1]} 79... g4 {[%clk
0:00:17.9]} 80. Kf4 {[%clk 0:01:51.4]} 80... g3 {[%clk 0:00:18.2]} 81. Nf5+
{[%clk 0:01:52.2]} 81... Kd7 {[%clk 0:00:16.8]} 82. Nxg3 {[%clk 0:01:51.3]}
82... c6 {[%clk 0:00:17.9]} 83. Nf5 {[%clk 0:01:40.6]} 83... Nxe4 {[%clk
0:00:17.6]} 84. Kxe4 {[%clk 0:01:41.3]} 84... cxd5+ {[%clk 0:00:19.1]} 85. Kxd5
{[%clk 0:01:42.9]} 1/2-1/2

[Event "*** Titled Tuesday Blitz"]
[Site "Chess.com"]
[Date "2019.08.06"]
[Round "10"]
[White "IMRosen"]
[Black "timator"]
[Result "1-0"]
[WhiteElo "2618"]
[BlackElo "2446"]
[TimeControl "180+2"]
[EndTime "15:25:00 PDT"]
[Termination "IMRosen won on time"]

1. e4 {[%clk 0:03:01.9]} 1... c5 {[%clk 0:02:59.5]} 2. Nc3 {[%clk 0:03:01.6]}
2... e5 {[%clk 0:02:54.5]} 3. f4 {[%clk 0:03:00.1]} 3... d6 {[%clk 0:02:49.1]}
4. Nf3 {[%clk 0:02:59.7]} 4... Nc6 {[%clk 0:02:47.4]} 5. Bc4 {[%clk 0:02:59.9]}
5... exf4 {[%clk 0:02:13.4]} 6. d3 {[%clk 0:02:53.6]} 6... Ne5 {[%clk
0:02:14.1]} 7. Bxf4 {[%clk 0:02:47]} 7... Nxc4 {[%clk 0:02:15]} 8. dxc4 {[%clk
0:02:48.9]} 8... Be6 {[%clk 0:02:16.2]} 9. Qd3 {[%clk 0:02:21.5]} 9... a6 {[%clk
0:02:10.5]} 10. O-O-O {[%clk 0:02:12.7]} 10... Nf6 {[%clk 0:02:09.4]} 11. Ng5
{[%clk 0:02:00.1]} 11... Bg4 {[%clk 0:01:57.7]} 12. Rd2 {[%clk 0:02:01]} 12...
h6 {[%clk 0:01:58.4]} 13. Nf3 {[%clk 0:02:01.6]} 13... Be6 {[%clk 0:01:51.4]}
14. Qe2 {[%clk 0:01:53.5]} 14... Qb6 {[%clk 0:01:45.6]} 15. Nd5 {[%clk
0:01:44.9]} 15... Bxd5 {[%clk 0:01:44.8]} 16. exd5+ {[%clk 0:01:39.8]} 16... Kd7
{[%clk 0:01:41.4]} 17. Qd3 {[%clk 0:01:31.9]} 17... g6 {[%clk 0:01:33.3]} 18.
Re1 {[%clk 0:01:30.3]} 18... Bg7 {[%clk 0:01:30.6]} 19. c3 {[%clk 0:01:22.5]}
19... Rae8 {[%clk 0:01:19.1]} 20. Rde2 {[%clk 0:01:23.1]} 20... Rxe2 {[%clk
0:01:19.7]} 21. Rxe2 {[%clk 0:01:24.1]} 21... Re8 {[%clk 0:01:21]} 22. Rxe8
{[%clk 0:01:20.4]} 22... Nxe8 {[%clk 0:01:22.9]} 23. Nd2 {[%clk 0:01:04.2]}
23... Qd8 {[%clk 0:01:19.5]} 24. Bxh6 {[%clk 0:00:57.1]} 24... Be5 {[%clk
0:01:07.7]} 25. Qh3+ {[%clk 0:00:41.9]} 25... Kc7 {[%clk 0:01:05.4]} 26. Ne4
{[%clk 0:00:43.5]} 26... f5 {[%clk 0:00:53]} 27. Bg5 {[%clk 0:00:41.5]} 27...
Qd7 {[%clk 0:00:48.6]} 28. Nf2 {[%clk 0:00:41]} 28... Bf6 {[%clk 0:00:42.5]} 29.
Qh4 {[%clk 0:00:34.1]} 29... Qe7 {[%clk 0:00:42.4]} 30. Bxf6 {[%clk 0:00:26.5]}
30... Nxf6 {[%clk 0:00:44.3]} 31. Kd1 {[%clk 0:00:23.1]} 31... Qe5 {[%clk
0:00:37.3]} 32. Nd3 {[%clk 0:00:21.1]} 32... Qe3 {[%clk 0:00:28.6]} 33. Qxf6
{[%clk 0:00:08.2]} 33... Qxd3+ {[%clk 0:00:29.4]} 34. Kc1 {[%clk 0:00:04.7]}
34... Qf1+ {[%clk 0:00:20.9]} 35. Kc2 {[%clk 0:00:05.3]} 35... Qxg2+ {[%clk
0:00:22.4]} 36. Kb3 {[%clk 0:00:06.9]} 36... Qe4 {[%clk 0:00:20.2]} 37. Qg7+
{[%clk 0:00:04]} 37... Kb6 {[%clk 0:00:21.3]} 38. Qxg6 {[%clk 0:00:05.9]} 38...
a5 {[%clk 0:00:21.1]} 39. Qf6 {[%clk 0:00:06]} 39... Kc7 {[%clk 0:00:19.2]} 40.
Qf7+ {[%clk 0:00:06.3]} 40... Kb6 {[%clk 0:00:20.6]} 41. Qf6 {[%clk 0:00:08]}
41... Kc7 {[%clk 0:00:21.9]} 42. h4 {[%clk 0:00:09.6]} 42... b5 {[%clk
0:00:18.1]} 43. cxb5 {[%clk 0:00:08.1]} 43... Qxd5+ {[%clk 0:00:19.1]} 44. c4
{[%clk 0:00:06.4]} 44... Qd3+ {[%clk 0:00:19.3]} 45. Qc3 {[%clk 0:00:04.9]}
45... Qd1+ {[%clk 0:00:19.4]} 46. Qc2 {[%clk 0:00:05.9]} 46... Qf3+ {[%clk
0:00:19.5]} 47. Qc3 {[%clk 0:00:07.4]} 47... Qd1+ {[%clk 0:00:20.7]} 48. Ka3
{[%clk 0:00:09]} 48... f4 {[%clk 0:00:20.6]} 49. Qxa5+ {[%clk 0:00:09.4]} 49...
Kd7 {[%clk 0:00:22.1]} 50. b6 {[%clk 0:00:08.1]} 50... Qd3+ {[%clk 0:00:21.9]}
51. b3 {[%clk 0:00:05.3]} 51... f3 {[%clk 0:00:12.3]} 52. b7 {[%clk 0:00:06.1]}
52... f2 {[%clk 0:00:13.5]} 53. b8=Q {[%clk 0:00:06.7]} 53... f1=Q {[%clk
0:00:14.3]} 54. Qad8+ {[%clk 0:00:07.1]} 54... Ke6 {[%clk 0:00:15.7]} 55. Qg8+
{[%clk 0:00:08.2]} 55... Ke5 {[%clk 0:00:15.9]} 56. Qbe8+ {[%clk 0:00:09.5]}
56... Kf4 {[%clk 0:00:10.3]} 57. Qef7+ {[%clk 0:00:09.3]} 57... Ke3 {[%clk
0:00:08.1]} 58. Qg5+ {[%clk 0:00:10.8]} 58... Ke2 {[%clk 0:00:07.6]} 59. Qfh5+
{[%clk 0:00:11.6]} 59... Ke1 {[%clk 0:00:05.7]} 60. Qc1+ {[%clk 0:00:11.8]} 1-0

[Event "*** Titled Tuesday Blitz"]
[Site "Chess.com"]
[Date "2019.08.06"]
[Round "10"]
[White "OlympusMons95"]
[Black "Vnebo"]
[Result "1/2-1/2"]
[WhiteElo "2684"]
[BlackElo "2699"]
[TimeControl "180+2"]
[EndTime "15:25:18 PDT"]
[Termination "Game drawn by repetition"]

1. Nf3 {[%clk 0:03:01.9]} 1... d5 {[%clk 0:02:58.7]} 2. e3 {[%clk 0:03:01.9]}
2... Nf6 {[%clk 0:02:55.3]} 3. c4 {[%clk 0:03:03.2]} 3... c6 {[%clk 0:02:56]} 4.
Nc3 {[%clk 0:03:04]} 4... a6 {[%clk 0:02:53.3]} 5. b3 {[%clk 0:03:01.3]} 5...
Bf5 {[%clk 0:02:52.4]} 6. Bb2 {[%clk 0:03:01.3]} 6... e6 {[%clk 0:02:52.9]} 7.
Be2 {[%clk 0:03:02.4]} 7... h6 {[%clk 0:02:53.4]} 8. O-O {[%clk 0:03:03.4]} 8...
Nbd7 {[%clk 0:02:53.6]} 9. d4 {[%clk 0:02:53]} 9... Be7 {[%clk 0:02:53.5]} 10.
Bd3 {[%clk 0:02:54.1]} 10... Bxd3 {[%clk 0:02:52.8]} 11. Qxd3 {[%clk 0:02:56]}
11... O-O {[%clk 0:02:53.4]} 12. e4 {[%clk 0:02:56.7]} 12... dxe4 {[%clk
0:02:48.7]} 13. Nxe4 {[%clk 0:02:58.6]} 13... Nxe4 {[%clk 0:02:49.8]} 14. Qxe4
{[%clk 0:02:58.6]} 14... Nf6 {[%clk 0:02:51.2]} 15. Qe2 {[%clk 0:02:57.6]} 15...
a5 {[%clk 0:02:41.9]} 16. a3 {[%clk 0:02:49.1]} 16... Qb6 {[%clk 0:02:37.4]} 17.
Qc2 {[%clk 0:02:49.7]} 17... Rfd8 {[%clk 0:02:29.7]} 18. Rfd1 {[%clk 0:02:42.6]}
18... c5 {[%clk 0:02:13.7]} 19. Rd3 {[%clk 0:02:24.6]} 19... cxd4 {[%clk
0:01:47]} 20. Bxd4 {[%clk 0:02:24.6]} 20... Qc7 {[%clk 0:01:37.6]} 21. h3 {[%clk
0:01:41.6]} 21... b5 {[%clk 0:01:29.7]} 22. Be5 {[%clk 0:01:13.4]} 22... Qb6
{[%clk 0:01:18.8]} 23. Bd4 {[%clk 0:00:58.9]} 23... Qc7 {[%clk 0:01:17.1]} 24.
Be5 {[%clk 0:00:55.7]} 24... Qb6 {[%clk 0:01:17.3]} 25. Bd4 {[%clk 0:00:56.7]}
25... Qb7 {[%clk 0:01:12.7]} 26. c5 {[%clk 0:00:48.1]} 26... b4 {[%clk
0:01:12.6]} 27. c6 {[%clk 0:00:45.9]} 27... Qb5 {[%clk 0:01:11]} 28. axb4 {[%clk
0:00:46.3]} 28... axb4 {[%clk 0:01:05]} 29. Rxa8 {[%clk 0:00:35]} 29... Rxa8
{[%clk 0:01:06.9]} 30. c7 {[%clk 0:00:35.6]} 30... Rc8 {[%clk 0:01:07]} 31. Rd1
{[%clk 0:00:26.3]} 31... Nd5 {[%clk 0:00:59]} 32. Be5 {[%clk 0:00:27.3]} 32...
Bf6 {[%clk 0:00:50.7]} 33. Qe4 {[%clk 0:00:19.1]} 33... Bxe5 {[%clk 0:00:44.4]}
34. Nxe5 {[%clk 0:00:21]} 34... Rxc7 {[%clk 0:00:42.8]} 35. Nc4 {[%clk
0:00:21.6]} 35... Qb8 {[%clk 0:00:35.1]} 36. Ra1 {[%clk 0:00:20.7]} 36... Ra7
{[%clk 0:00:33.5]} 37. Rxa7 {[%clk 0:00:21.6]} 37... Qxa7 {[%clk 0:00:35.4]} 38.
Qe5 {[%clk 0:00:23.4]} 38... Qb7 {[%clk 0:00:32.9]} 39. Qd6 {[%clk 0:00:23]}
39... Qc8 {[%clk 0:00:32.8]} 40. g3 {[%clk 0:00:23.8]} 40... Qf8 {[%clk
0:00:33.9]} 41. Qd7 {[%clk 0:00:23.5]} 41... Qe7 {[%clk 0:00:31.8]} 42. Qc8+
{[%clk 0:00:24.4]} 42... Kh7 {[%clk 0:00:32.9]} 43. h4 {[%clk 0:00:25.9]} 43...
Qf6 {[%clk 0:00:33.7]} 44. Qe8 {[%clk 0:00:25.2]} 44... Qe7 {[%clk 0:00:31.5]}
45. Qc6 {[%clk 0:00:24.6]} 45... g6 {[%clk 0:00:31.2]} 46. Kg2 {[%clk
0:00:21.6]} 46... Kg7 {[%clk 0:00:31.4]} 47. Ne5 {[%clk 0:00:20.7]} 47... Qf6
{[%clk 0:00:29.8]} 48. f4 {[%clk 0:00:21.7]} 48... Qf5 {[%clk 0:00:29.2]} 49.
Qd7 {[%clk 0:00:22.9]} 49... h5 {[%clk 0:00:22.7]} 50. Kh2 {[%clk 0:00:21.7]}
50... Ne3 {[%clk 0:00:22.1]} 51. Qd2 {[%clk 0:00:20.4]} 51... Ng4+ {[%clk
0:00:22.2]} 52. Nxg4 {[%clk 0:00:20.7]} 52... Qxg4 {[%clk 0:00:22.8]} 53. Qxb4
{[%clk 0:00:22.4]} 53... Qe2+ {[%clk 0:00:24.1]} 54. Kh3 {[%clk 0:00:23.7]}
54... Qf1+ {[%clk 0:00:23.6]} 55. Kh2 {[%clk 0:00:24.6]} 55... Qf2+ {[%clk
0:00:25.5]} 56. Kh3 {[%clk 0:00:26.1]} 56... Qg1 {[%clk 0:00:26.3]} 57. Qc3+
{[%clk 0:00:20]} 57... Kh7 {[%clk 0:00:25.3]} 58. Qf3 {[%clk 0:00:20.7]} 58...
Qb1 {[%clk 0:00:25.5]} 59. Kg2 {[%clk 0:00:21.7]} 59... Qb2+ {[%clk 0:00:26.6]}
60. Kh3 {[%clk 0:00:23]} 60... Qc2 {[%clk 0:00:24.1]} 61. Qe3 {[%clk 0:00:23.6]}
61... Qb1 {[%clk 0:00:23.4]} 62. Qf3 {[%clk 0:00:22.5]} 62... Kg8 {[%clk
0:00:22.2]} 63. Qa8+ {[%clk 0:00:23]} 63... Kg7 {[%clk 0:00:22.1]} 64. Qf3
{[%clk 0:00:24.9]} 64... Qe1 {[%clk 0:00:18.5]} 65. Kg2 {[%clk 0:00:24]} 65...
Qd2+ {[%clk 0:00:18.5]} 66. Qf2 {[%clk 0:00:25]} 66... Qd5+ {[%clk 0:00:17.7]}
67. Qf3 {[%clk 0:00:26.4]} 67... Qd2+ {[%clk 0:00:19]} 68. Qf2 {[%clk
0:00:27.9]} 68... Qd5+ {[%clk 0:00:18.2]} 69. Qf3 {[%clk 0:00:29]} 69... Qd2+
{[%clk 0:00:19]} 1/2-1/2

[Event "*** Titled Tuesday Blitz"]
[Site "Chess.com"]
[Date "2019.08.06"]
[Round "10"]
[White "Etoilegeniale"]
[Black "AndrewMaco"]
[Result "1/2-1/2"]
[WhiteElo "2521"]
[BlackElo "2592"]
[TimeControl "180+2"]
[EndTime "15:25:20 PDT"]
[Termination "Game drawn - insufficient material"]

1. e4 {[%clk 0:03:01.9]} 1... c5 {[%clk 0:02:59.5]} 2. Nf3 {[%clk 0:03:02.2]}
2... d6 {[%clk 0:02:58.6]} 3. d4 {[%clk 0:03:02.6]} 3... cxd4 {[%clk 0:03:00.5]}
4. Qxd4 {[%clk 0:03:03.6]} 4... a6 {[%clk 0:02:53.8]} 5. c4 {[%clk 0:03:03.4]}
5... e5 {[%clk 0:02:52.1]} 6. Qe3 {[%clk 0:03:03.6]} 6... Be6 {[%clk 0:02:51.3]}
7. Nc3 {[%clk 0:03:03.5]} 7... Nf6 {[%clk 0:02:45.1]} 8. h3 {[%clk 0:03:04.1]}
8... h6 {[%clk 0:02:44.1]} 9. Be2 {[%clk 0:03:05]} 9... Nbd7 {[%clk 0:02:44.6]}
10. O-O {[%clk 0:03:05.8]} 10... Be7 {[%clk 0:02:44]} 11. Rd1 {[%clk 0:03:06.3]}
11... O-O {[%clk 0:02:44.9]} 12. b3 {[%clk 0:03:07.4]} 12... Qa5 {[%clk
0:02:44.3]} 13. Bb2 {[%clk 0:03:06.2]} 13... Rac8 {[%clk 0:02:35.9]} 14. Rac1
{[%clk 0:02:57.3]} 14... Rfe8 {[%clk 0:02:32.3]} 15. Qd2 {[%clk 0:02:45.3]}
15... Nc5 {[%clk 0:02:14]} 16. Nd5 {[%clk 0:02:20.9]} 16... Qxd2 {[%clk
0:01:02.4]} 17. Nxe7+ {[%clk 0:02:18.5]} 17... Rxe7 {[%clk 0:01:02.9]} 18. Nxd2
{[%clk 0:02:19.3]} 18... Nfxe4 {[%clk 0:00:52.4]} 19. Nxe4 {[%clk 0:02:19.4]}
19... Nxe4 {[%clk 0:00:54.3]} 20. Bf3 {[%clk 0:02:20]} 20... Ng5 {[%clk
0:00:49.1]} 21. Be2 {[%clk 0:01:59.9]} 21... Rd7 {[%clk 0:00:49.1]} 22. h4
{[%clk 0:01:55.5]} 22... Ne4 {[%clk 0:00:49.8]} 23. Bf3 {[%clk 0:01:55.6]} 23...
Nf6 {[%clk 0:00:50.6]} 24. Rd2 {[%clk 0:01:50.6]} 24... Kf8 {[%clk 0:00:41]} 25.
Rcd1 {[%clk 0:01:50.6]} 25... Ke7 {[%clk 0:00:42.1]} 26. Ba3 {[%clk 0:01:48.3]}
26... Rcd8 {[%clk 0:00:41.8]} 27. Re1 {[%clk 0:01:35.3]} 27... Ke8 {[%clk
0:00:40.6]} 28. Red1 {[%clk 0:01:33]} 28... d5 {[%clk 0:00:37.7]} 29. cxd5
{[%clk 0:01:28.1]} 29... Bxd5 {[%clk 0:00:37.2]} 30. Re1 {[%clk 0:01:21.7]}
30... e4 {[%clk 0:00:38.5]} 31. g4 {[%clk 0:01:02.9]} 31... g5 {[%clk
0:00:30.2]} 32. hxg5 {[%clk 0:00:59.5]} 32... hxg5 {[%clk 0:00:32.1]} 33. Bb2
{[%clk 0:00:59.3]} 33... Ke7 {[%clk 0:00:32.8]} 34. Rde2 {[%clk 0:00:48.8]}
34... Rc8 {[%clk 0:00:21.8]} 35. Bxf6+ {[%clk 0:00:28.5]} 35... Kxf6 {[%clk
0:00:23.7]} 36. Bxe4 {[%clk 0:00:29.7]} 36... Be6 {[%clk 0:00:24.7]} 37. f3
{[%clk 0:00:26.7]} 37... a5 {[%clk 0:00:26.1]} 38. Kg2 {[%clk 0:00:27.5]} 38...
b5 {[%clk 0:00:27.1]} 39. Kg3 {[%clk 0:00:28.6]} 39... b4 {[%clk 0:00:28.6]} 40.
Rh1 {[%clk 0:00:28.8]} 40... Rc3 {[%clk 0:00:26.4]} 41. Rh6+ {[%clk 0:00:29.4]}
41... Kg7 {[%clk 0:00:25.4]} 42. Rh5 {[%clk 0:00:29.4]} 42... Kf6 {[%clk
0:00:24]} 43. Rh6+ {[%clk 0:00:29.5]} 43... Kg7 {[%clk 0:00:23.7]} 44. Rh7+
{[%clk 0:00:30.1]} 44... Kf6 {[%clk 0:00:24.7]} 45. Reh2 {[%clk 0:00:29.4]}
45... Rd1 {[%clk 0:00:22.8]} 46. R7h6+ {[%clk 0:00:20.5]} 46... Ke5 {[%clk
0:00:24.2]} 47. Re2 {[%clk 0:00:20.9]} 47... Rg1+ {[%clk 0:00:24.9]} 48. Kf2
{[%clk 0:00:21.6]} 48... Rcc1 {[%clk 0:00:25.2]} 49. Bf5+ {[%clk 0:00:22.1]}
49... Kd4 {[%clk 0:00:25.6]} 50. Rd2+ {[%clk 0:00:20.8]} 50... Kc3 {[%clk
0:00:25.7]} 51. Rd3+ {[%clk 0:00:22]} 51... Kb2 {[%clk 0:00:27.2]} 52. Bxe6
{[%clk 0:00:22.9]} 52... fxe6 {[%clk 0:00:28.6]} 53. Rxe6 {[%clk 0:00:19.3]}
53... Rcf1+ {[%clk 0:00:29.6]} 54. Ke3 {[%clk 0:00:17.9]} 54... Re1+ {[%clk
0:00:30.9]} 55. Kf2 {[%clk 0:00:18.6]} 55... Rxe6 {[%clk 0:00:31.5]} 56. Kxg1
{[%clk 0:00:17.9]} 56... Kxa2 {[%clk 0:00:33.1]} 57. Kf2 {[%clk 0:00:18.4]}
57... a4 {[%clk 0:00:32.8]} 58. bxa4 {[%clk 0:00:19.2]} 58... b3 {[%clk
0:00:34.4]} 59. f4 {[%clk 0:00:18.8]} 59... b2 {[%clk 0:00:34]} 60. Rd1 {[%clk
0:00:19.5]} 60... gxf4 {[%clk 0:00:33.4]} 61. Kf3 {[%clk 0:00:19.6]} 61... Rf6
{[%clk 0:00:32.7]} 62. g5 {[%clk 0:00:19.4]} 62... Rf8 {[%clk 0:00:34]} 63. a5
{[%clk 0:00:19.3]} 63... b1=Q {[%clk 0:00:34.2]} 64. Rxb1 {[%clk 0:00:19.5]}
64... Kxb1 {[%clk 0:00:36.1]} 65. a6 {[%clk 0:00:20.8]} 65... Kc2 {[%clk
0:00:37.4]} 66. a7 {[%clk 0:00:21.6]} 66... Kd3 {[%clk 0:00:38.5]} 67. g6 {[%clk
0:00:19.3]} 67... Kd4 {[%clk 0:00:36.2]} 68. g7 {[%clk 0:00:19.5]} 68... Rg8
{[%clk 0:00:33.1]} 69. Kxf4 {[%clk 0:00:20.7]} 69... Kc5 {[%clk 0:00:34.1]} 70.
Kf5 {[%clk 0:00:21.1]} 70... Kb6 {[%clk 0:00:34.7]} 71. Kf6 {[%clk 0:00:22.2]}
71... Kxa7 {[%clk 0:00:33.7]} 72. Kf7 {[%clk 0:00:23.8]} 72... Ra8 {[%clk
0:00:34.2]} 73. g8=Q {[%clk 0:00:24.8]} 73... Rxg8 {[%clk 0:00:35.1]} 74. Kxg8
{[%clk 0:00:26.3]} 1/2-1/2